bitfinex-derivatives/quotes_BNBF0:USTF0_20250115
["timestamp","ask_amount","ask_price","bid_price","bid_amount"]
[1736903860706,0.26285221,699.84,699.03,1.136]
[1736903863412,0.28577552,699.85,699.03,1.136]
[1736903873317,0.26285053,699.84,699.03,1.136]
[1736903874220,1.06077497,699.8,699.03,1.136]
[1736903874617,0.26285552,699.79,699.03,1.136]
[1736903875119,1.06077497,699.77,699.03,1.136]
[1736903875314,0.26285552,699.76,699.03,1.136]
[1736903875717,0.26286896,699.75,699.03,1.136]
[1736903875914,0.26286896,699.74,699.03,1.136]
[1736903876116,1.06077497,699.77,699.03,1.136]
[1736903876117,0.26286896,699.73,699.03,1.136]
[1736903876320,0.28577552,699.85,699.03,1.136]
[1736903876321,1.32364393,699.72,699.03,1.136]
[1736903876520,0.26286896,699.71,699.03,1.136]
[1736903877122,1.32364393,699.71,699.03,1.136]
[1736903877426,0.54870574,699.7,699.03,1.136]
[1736903877626,0.26286896,699.69,699.03,1.136]
[1736903878324,1.06077497,699.62,699.03,1.136]
[1736903878923,0.26286446,699.61,699.03,1.136]
[1736903879124,1.06077497,699.61,699.03,1.136]
[1736903881320,1.06077497,699.63,699.03,1.136]
[1736903882627,1.06077497,699.66,699.03,1.136]
[1736903883526,1.06077497,699.64,699.03,1.136]
[1736903885328,1.06077497,699.63,699.03,1.136]
[1736903886026,0.26289323,699.62,699.03,1.136]
[1736903886726,1.06077497,699.61,699.03,1.136]
[1736903886927,0.26289323,699.6,699.03,1.136]
[1736903887131,0.26290817,699.59,699.03,1.136]
[1736903887331,0.26290817,699.58,699.03,1.136]
[1736903887530,1.06077497,699.53,699.03,1.136]
[1736903888531,1.06077497,699.54,699.03,1.136]
[1736903889526,1.06077497,699.55,699.03,1.136]
[1736903891029,1.06077497,699.59,699.03,1.136]
[1736903891231,0.28588581,699.58,699.03,1.136]
[1736903892032,1.34666078,699.58,699.03,1.136]
[1736903892832,0.28588581,699.58,699.03,1.136]
[1736903899143,0.26291886,699.57,699.03,1.136]
[1736903899936,0.26291833,699.56,699.03,1.136]
[1736903900141,0.26291833,699.55,699.03,1.136]
[1736903900337,0.28588581,699.58,699.03,1.136]
[1736903900338,0.26291833,699.54,699.03,1.136]
[1736903900544,1.3236933,699.53,699.03,1.136]
[1736903900844,0.26291814,699.52,699.03,1.136]
[1736903901442,1.06077497,699.53,699.03,1.136]
[1736903902545,0.28588581,699.58,699.03,1.136]
[1736903902746,0.26291668,699.57,699.03,1.136]
[1736903903549,0.28588581,699.58,699.03,1.136]
[1736903903848,1.34666078,699.58,699.03,1.136]
[1736903904549,0.28588581,699.58,699.03,1.136]
[1736903917654,1.06181698,699.55,699.03,1.136]
[1736903918651,1.06181698,699.53,699.03,1.136]
[1736903919853,1.06181698,699.54,699.03,1.136]
[1736903920860,1.06181698,699.49,699.03,1.136]
[1736903921961,1.06181698,699.46,699.03,1.136]
[1736903923055,0.28588581,699.58,699.03,1.136]
[1736903923056,1.06181698,699.49,699.03,1.136]
[1736903924056,1.06181698,699.46,699.03,1.136]
[1736903926362,1.06181698,699.43,699.03,1.136]
[1736903927265,1.06181698,699.42,699.03,1.136]
[1736903935571,0.28588581,699.58,699.03,1.136]
[1736903935767,0.26289667,699.57,699.03,1.136]
[1736903935966,0.28588581,699.58,699.03,1.136]
[1736903936271,0.26289727,699.57,699.03,1.136]
[1736903938572,0.28588581,699.58,699.03,1.136]
[1736903938868,0.26291389,699.57,699.03,1.136]
[1736903940973,0.26290838,699.56,699.03,1.136]
[1736903941173,0.28588581,699.58,699.03,1.136]
[1736903941370,0.26290676,699.57,699.03,1.136]
[1736903941774,0.26290647,699.56,699.03,1.136]
[1736903942075,0.26290647,699.55,699.03,1.136]
[1736903942375,0.28588581,699.58,699.03,1.136]
[1736903942576,0.26290973,699.57,699.03,1.136]
[1736903942776,0.2629113,699.56,699.03,1.136]
[1736903942978,0.2629113,699.55,699.03,1.136]
[1736903943176,0.2629113,699.54,699.03,1.136]
[1736903943378,0.2629113,699.53,699.03,1.136]
[1736903943574,0.28588581,699.58,699.03,1.136]
[1736903943879,0.26291058,699.57,699.03,1.136]
[1736903946279,0.2629138,699.56,699.03,1.136]
[1736903946479,0.2629138,699.55,699.03,1.136]
[1736903946681,0.2629138,699.54,699.03,1.136]
[1736903946875,0.2629138,699.53,699.03,1.136]
[1736903947077,0.2629138,699.52,699.03,1.136]
[1736903947277,0.2629138,699.51,699.03,1.136]
[1736903947482,0.2629138,699.5,699.03,1.136]
[1736903947682,0.2629138,699.49,699.03,1.136]
[1736903947879,0.2629138,699.48,699.03,1.136]
[1736903948180,0.28588581,699.58,699.03,1.136]
[1736903948181,0.2629138,699.47,699.03,1.136]
[1736903948379,0.2629138,699.46,699.03,1.136]
[1736903948579,0.2629138,699.45,699.03,1.136]
[1736903948782,1.06405505,699.34,699.03,1.136]
[1736903949883,1.06405505,699.37,699.03,1.136]
[1736903951284,1.06405505,699.35,699.03,1.136]
[1736903954492,1.06405505,699.36,699.03,1.136]
[1736903955589,1.06405505,699.37,699.03,1.136]
[1736903956490,0.28588581,699.58,699.03,1.136]
[1736903956491,1.06405505,699.38,699.03,1.136]
[1736903957593,1.06405505,699.47,699.03,1.136]
[1736903958196,0.26290838,699.46,699.03,1.136]
[1736903958494,1.06405505,699.44,699.03,1.136]
[1736903959493,1.06405505,699.42,699.03,1.136]
[1736903960590,1.32697554,699.41,699.03,1.136]
[1736903960795,1.06405505,699.41,699.03,1.136]
[1736903960995,0.2629244,699.4,699.03,1.136]
[1736903961795,0.28588581,699.58,699.03,1.136]
[1736903961796,1.06405505,699.37,699.03,1.136]
[1736903962790,1.06405505,699.44,699.03,1.136]
[1736903963996,1.06405505,699.43,699.03,1.136]
[1736903966296,0.28588581,699.58,699.03,1.136]
[1736903974701,0.26293146,699.57,699.03,1.136]
[1736903975001,0.28589399,699.56,699.03,1.136]
[1736903975903,1.06405505,699.47,699.03,1.136]
[1736903977102,1.06405505,699.46,699.03,1.136]
[1736903978102,1.06405505,699.45,699.03,1.136]
[1736903980403,1.06405505,699.46,699.03,1.136]
[1736903981705,1.06405505,699.43,699.03,1.136]
[1736903982709,1.06405505,699.42,699.03,1.136]
[1736903984810,1.06405505,699.4,699.03,1.136]
[1736903988411,1.06405505,699.44,699.03,1.136]
[1736903988809,0.26293067,699.43,699.03,1.136]
[1736903989217,1.06405505,699.33,699.03,1.136]
[1736903990317,1.06405505,699.34,699.03,1.136]
[1736903991217,1.06405505,699.33,699.03,1.136]
[1736903993616,1.06405505,699.31,699.03,1.136]
[1736903995721,1.06405505,699.3,699.03,1.136]
[1736903996723,1.06405505,699.27,699.03,1.136]
[1736903998022,1.06405505,699.48,699.03,1.136]
[1736903998023,1.06405505,699.25,699.03,1.136]
[1736903999025,1.06405505,699.31,699.03,1.136]
[1736903999926,1.06405505,699.33,699.03,1.136]
[1736904001027,1.06405505,699.32,699.03,1.136]
[1736904001726,1.06405505,699.33,699.03,1.136]
[1736904002825,1.06405505,699.32,699.03,1.136]
[1736904004123,1.06405505,699.35,699.03,1.136]
[1736904005029,1.06405505,699.33,699.03,1.136]
[1736904005830,1.06405505,699.41,699.03,1.136]
[1736904008923,1.06405505,699.49,699.03,1.136]
[1736904009831,1.06405505,699.52,699.03,1.136]
[1736904011228,0.28589399,699.56,699.03,1.136]
[1736904013636,0.26287422,699.55,699.03,1.136]
[1736904014833,0.26288234,699.54,699.03,1.136]
[1736904015038,0.28589399,699.56,699.03,1.136]
[1736904015235,0.26288233,699.55,699.03,1.136]
[1736904015941,0.26288353,699.54,699.03,1.136]
[1736904016143,0.28589399,699.56,699.03,1.136]
[1736904016338,0.26288393,699.55,699.03,1.136]
[1736904017641,0.28589399,699.56,699.03,1.136]
[1736904019744,0.26290273,699.55,699.03,1.136]
[1736904020743,0.26290375,699.54,699.03,1.136]
[1736904020937,0.28589399,699.56,699.03,1.136]
[1736904048857,1.06405505,699.75,699.03,1.136]
[1736904049659,1.06405505,699.89,699.03,1.136]
[1736904050559,1.06405505,699.93,699.03,1.136]
[1736904051759,1.06405505,700.02,699.03,1.136]
[1736904051956,0.54849114,700.01,699.03,1.136]
[1736904052253,0.54849522,700.0,699.03,1.136]
[1736904052552,0.54849957,699.99,699.03,1.136]
[1736904052757,0.28572244,699.98,699.03,1.136]
[1736904054057,0.26277994,699.97,699.03,1.136]
[1736904054362,0.28573061,699.96,699.03,1.136]
[1736904054658,0.26278587,699.95,699.03,1.136]
[1736904057062,0.28573061,699.96,699.03,1.136]
[1736904057257,0.26277966,699.95,699.03,1.136]
[1736904058559,0.28573061,699.96,699.03,1.136]
[1736904061063,0.26278144,699.95,699.03,1.136]
[1736904061662,0.28573061,699.96,699.03,1.136]
[1736904068872,0.26273438,699.95,699.03,1.136]
[1736904069171,0.28573061,699.96,699.03,1.136]
[1736904098506,0.26277383,699.95,699.03,1.136]
[1736904098801,1.32682888,699.95,699.03,1.136]
[1736904099001,0.26277383,699.94,699.03,1.136]
[1736904099905,1.06405505,699.84,699.03,1.136]
[1736904101003,1.06405505,699.85,699.03,1.136]
[1736904102108,1.06405505,699.86,699.03,1.136]
[1736904102308,0.26278186,699.85,699.03,1.136]
[1736904103510,1.06405505,699.87,699.03,1.136]
[1736904103706,0.26278439,699.86,699.03,1.136]
[1736904104109,1.06405505,699.87,699.03,1.136]
[1736904104309,0.26278498,699.86,699.03,1.136]
[1736904104705,0.26278498,699.85,699.03,1.136]
[1736904104903,1.06405505,699.88,699.03,1.136]
[1736904105108,0.26278271,699.87,699.03,1.136]
[1736904105511,1.06405505,699.89,699.03,1.136]
[1736904106815,0.28573061,699.96,699.03,1.136]
[1736904133337,1.06577982,700.49,699.03,1.136]
[1736904133537,0.2855185,700.48,699.03,1.136]
[1736904134835,0.26260297,700.47,699.03,1.136]
[1736904136935,0.26260296,700.46,699.03,1.136]
[1736904137140,0.26260296,700.45,699.03,1.136]
[1736904137439,0.26260296,700.44,699.03,1.136]
[1736904137640,0.26260296,700.43,699.03,1.136]
[1736904137940,0.2855185,700.48,699.03,1.136]
[1736904137941,0.26260296,700.42,699.03,1.136]
[1736904138142,0.26260296,700.47,699.03,1.136]
[1736904138440,0.26260296,700.46,699.03,1.136]
[1736904138642,0.26260296,700.45,699.03,1.136]
[1736904138940,0.26260296,700.44,699.03,1.136]
[1736904139142,0.26260296,700.43,699.03,1.136]
[1736904139340,0.26260296,700.42,699.03,1.136]
[1736904139537,0.26260296,700.41,699.04,0.28610666]
[1736904139738,0.2855185,700.48,699.04,0.28610666]
[1736904139943,0.26257659,700.47,699.04,0.28610666]
[1736904140444,0.26257841,700.46,699.04,0.28610666]
[1736904140645,0.26257841,700.45,699.04,0.28610666]
[1736904140845,0.26257841,700.44,699.04,1.35910666]
[1736904141143,0.26257841,700.43,699.04,1.35910666]
[1736904141346,0.2855185,700.48,699.04,1.35910666]
[1736904141547,0.26257831,700.47,699.04,1.35910666]
[1736904142342,0.2855185,700.48,699.04,1.35910666]
[1736904142547,0.2625877,700.47,699.04,1.35910666]
[1736904142849,0.2855185,700.48,699.04,1.35910666]
[1736904143548,1.06577982,700.52,699.04,1.35910666]
[1736904144946,1.06577982,700.88,699.05,1.06781859]
[1736904145144,0.54783245,700.87,699.07,0.28609438]
[1736904145348,0.26247283,700.86,699.07,0.28609438]
[1736904145549,0.28536776,700.85,699.07,0.28609438]
[1736904145750,0.26247283,700.84,699.07,0.28609438]
[1736904148352,0.54784466,700.84,699.07,0.28609438]
[1736904148549,0.26247283,700.83,699.07,0.28609438]
[1736904150354,0.2624652,700.82,699.07,0.28609438]
[1736904150554,0.28537183,700.84,699.07,0.28609438]
[1736904150555,0.2624652,700.81,699.07,0.28609438]
[1736904150753,0.26246929,700.8,699.07,0.28609438]
[1736904150951,0.28537183,700.84,699.07,0.28609438]
[1736904150952,0.26246929,700.79,699.07,0.28609438]
[1736904151249,0.26246929,700.78,699.07,0.28609438]
[1736904151456,0.26246929,700.77,699.07,0.28609438]
[1736904151755,0.26246929,700.76,699.07,0.28609438]
[1736904151955,0.28537183,700.84,699.07,0.28609438]
[1736904152155,0.26246388,700.83,699.07,0.28609438]
[1736904153154,0.26246388,700.83,699.07,1.06309438]
[1736904153555,0.26246508,700.82,699.07,1.06309438]
[1736904153748,0.26246508,700.81,699.07,1.06309438]
[1736904153956,0.26246508,700.8,699.07,1.06309438]
[1736904154156,0.26246508,700.79,699.07,1.06309438]
[1736904154355,0.26246508,700.78,699.07,1.06309438]
[1736904154656,0.26246508,700.77,699.07,1.06309438]
[1736904154855,0.26246508,700.76,699.07,1.06309438]
[1736904155056,0.26246508,700.75,699.07,1.06309438]
[1736904155257,0.26246508,700.74,699.07,1.06309438]
[1736904155459,0.26246508,700.73,699.07,1.06309438]
[1736904155658,0.26246508,700.72,699.07,1.06309438]
[1736904155859,0.26246508,700.71,699.07,1.06309438]
[1736904156053,0.26246508,700.7,699.07,1.06309438]
[1736904156254,0.26246983,700.69,699.07,1.06309438]
[1736904156459,0.26246983,700.68,699.07,1.06309438]
[1736904156657,0.28537183,700.84,699.07,1.06309438]
[1736904156855,0.26246964,700.83,699.07,1.06309438]
[1736904157059,0.54784962,700.82,699.07,1.06309438]
[1736904157261,0.26246964,700.81,699.07,1.06309438]
[1736904157562,0.28538812,700.8,699.07,1.06309438]
[1736904157862,0.26246964,700.79,699.07,1.06309438]
[1736904161463,0.28538812,700.8,699.07,1.06309438]
[1736904169277,0.26247327,700.79,699.08,1.49107178]
[1736904170269,0.26246223,700.78,699.1,0.2860821]
[1736904170573,0.28538812,700.8,699.1,0.2860821]
[1736904170772,0.2624648,700.79,699.1,1.1810821]
[1736904173074,0.26247291,700.78,699.1,1.1810821]
[1736904173274,0.26247291,700.77,699.1,1.1810821]
[1736904173474,0.26247291,700.76,699.1,1.1810821]
[1736904173670,0.28538812,700.8,699.1,1.1810821]
[1736904173868,0.26247272,700.79,699.1,1.1810821]
[1736904175275,1.06364561,700.78,699.1,1.1810821]
[1736904175475,0.26247272,700.77,699.1,1.1810821]
[1736904175876,1.06364561,700.78,699.1,1.1810821]
[1736904176078,0.26247303,700.77,699.1,1.1810821]
[1736904176278,1.06364561,700.74,699.12,1.0637247]
[1736904176478,1.06364561,700.74,699.14,0.28606573]
[1736904176681,0.26247254,700.73,699.14,0.28606573]
[1736904177179,1.06364561,700.67,699.22,1.0637247]
[1736904177480,1.06364561,700.67,699.23,0.28602891]
[1736904178180,1.06364561,700.58,699.34,1.0637247]
[1736904178371,1.06364561,700.58,699.34,1.34970862]
[1736904178971,0.28538812,700.8,699.42,1.0637247]
[1736904178972,1.06364561,700.49,699.42,1.0637247]
[1736904179975,1.06364561,700.47,699.45,1.0637247]
[1736904181079,1.06364561,700.46,699.47,1.0637247]
[1736904182383,1.06364561,700.46,699.45,1.0637247]
[1736904183383,0.82241014,700.79,699.34,0.28598392]
[1736904183384,1.06364561,700.41,699.39,1.0637247]
[1736904184183,1.06364561,700.42,699.38,1.0637247]
[1736904185083,0.82241014,700.79,699.34,0.28598392]
[1736904185084,1.06364561,700.5,699.34,0.28598392]
[1736904186283,1.06364561,700.51,699.34,0.28598392]
[1736904187184,1.06364561,700.72,699.34,0.28598392]
[1736904187483,0.28542478,700.71,699.34,0.28598392]
[1736904191484,0.26254107,700.7,699.34,0.28598392]
[1736904191685,0.28543293,700.69,699.34,0.28598392]
[1736904191890,0.26254107,700.68,699.34,0.28598392]
[1736904192082,0.28544107,700.67,699.34,0.28598392]
[1736904192287,0.26254107,700.66,699.34,0.28598392]
[1736904192483,0.28544922,700.65,699.34,0.28598392]
[1736904192886,1.06727668,700.62,699.34,0.28598392]
[1736904193085,0.54800655,700.61,699.34,0.28598392]
[1736904193386,0.26254103,700.6,699.34,0.28598392]
[1736904194291,1.06727668,700.5,699.34,0.28598392]
[1736904194684,0.26254184,700.49,699.34,0.28598392]
[1736904195390,0.26254184,700.48,699.34,0.28598392]
[1736904195588,0.26254184,700.47,699.34,0.28598392]
[1736904195789,0.26254184,700.46,699.34,0.28598392]
[1736904196090,1.06727668,700.51,699.34,0.28598392]
[1736904196091,0.26254184,700.45,699.34,0.28598392]
[1736904196285,0.26254184,700.44,699.34,0.28598392]
[1736904196490,0.26254184,700.43,699.34,0.28598392]
[1736904196790,0.26254184,700.42,699.34,0.28598392]
[1736904196983,1.06727668,700.48,699.34,0.28598392]
[1736904197188,0.26254056,700.47,699.34,0.28598392]
[1736904197389,0.5250813,700.46,699.34,0.28598392]
[1736904197590,0.26254065,700.45,699.34,0.28598392]
[1736904198088,0.26254065,700.46,699.34,0.28598392]
[1736904198288,0.26254016,700.45,699.34,0.28598392]
[1736904199991,0.26254016,700.45,699.34,1.49398392]
[1736904200287,0.26255108,700.44,699.34,1.49398392]
[1736904200494,0.26255108,700.43,699.34,1.49398392]
[1736904200685,0.26255108,700.42,699.34,1.49398392]
[1736904200890,1.06727668,700.47,699.34,1.49398392]
[1736904201091,0.26254941,700.46,699.34,1.49398392]
[1736904201789,0.26254941,700.45,699.34,1.49398392]
[1736904201992,0.26254941,700.44,699.34,1.49398392]
[1736904202191,0.26254941,700.43,699.34,1.49398392]
[1736904202487,0.26254941,700.42,699.34,1.49398392]
[1736904202791,1.06727668,700.48,699.34,1.49398392]
[1736904202992,0.26255291,700.47,699.34,1.49398392]
[1736904203793,0.26255291,700.46,699.34,1.49398392]
[1736904203993,0.26255291,700.45,699.34,1.49398392]
[1736904204193,0.26255291,700.44,699.34,1.49398392]
[1736904204393,0.26255291,700.43,699.34,1.49398392]
[1736904204595,0.26255291,700.42,699.34,1.49398392]
[1736904204794,0.26255291,700.41,699.34,1.49398392]
[1736904205095,1.06727668,700.5,699.34,1.49398392]
[1736904205294,0.26256241,700.49,699.34,1.49398392]
[1736904205592,1.06727668,700.5,699.34,1.49398392]
[1736904205794,0.26256239,700.49,699.34,1.49398392]
[1736904206094,1.06727668,700.48,699.34,1.49398392]
[1736904206496,0.26256518,700.47,699.34,1.49398392]
[1736904206695,1.06727668,700.48,699.34,1.49398392]
[1736904207397,1.06727668,700.52,699.34,1.49398392]
[1736904207696,0.26256349,700.51,699.34,1.49398392]
[1736904208596,0.2625698,700.5,699.34,1.49398392]
[1736904209898,0.2625698,700.49,699.34,1.49398392]
[1736904210094,0.2625698,700.48,699.34,1.49398392]
[1736904210297,0.2625698,700.51,699.34,1.49398392]
[1736904210499,0.2625698,700.5,699.34,1.49398392]
[1736904210698,0.2625698,700.49,699.34,1.49398392]
[1736904210894,0.2625698,700.48,699.34,1.49398392]
[1736904211099,1.06727668,700.51,699.34,1.49398392]
[1736904211295,0.26257003,700.5,699.34,1.49398392]
[1736904211699,1.32984671,700.5,699.34,1.49398392]
[1736904211994,0.26257003,700.49,699.34,1.49398392]
[1736904213800,1.06727668,700.5,699.34,1.49398392]
[1736904214101,1.06727668,700.46,699.34,1.49398392]
[1736904215502,0.28546552,700.61,699.34,1.49398392]
[1736904218902,1.06727668,700.59,699.34,1.49398392]
[1736904219103,0.28547774,700.58,699.34,1.49398392]
[1736904220199,0.26257907,700.57,699.34,1.49398392]
[1736904220404,1.32938334,700.57,699.34,1.49398392]
[1736904220700,1.06680427,700.57,699.34,1.49398392]
[1736904221104,0.54806443,700.56,699.34,1.49398392]
[1736904221404,0.54806851,700.55,699.34,1.49398392]
[1736904221604,1.06680427,700.48,699.34,1.49398392]
[1736904221804,0.26257854,700.47,699.34,1.49398392]
[1736904222507,1.06680427,700.39,699.34,1.49398392]
[1736904223710,1.06680427,700.41,699.34,1.49398392]
[1736904224605,1.06680427,700.39,699.34,1.49398392]
[1736904225508,0.28549404,700.54,699.34,1.49398392]
[1736904226912,1.06680427,700.53,699.34,1.49398392]
[1736904227808,1.06680427,700.52,699.34,1.49398392]
[1736904230311,0.28549404,700.54,699.34,1.49398392]
[1736904244120,1.35229831,700.54,699.34,1.49398392]
[1736904246919,0.28549404,700.54,699.34,1.49398392]
[1736904247826,0.26253625,700.53,699.34,1.49398392]
[1736904248027,1.32849384,700.53,699.34,1.49398392]
[1736904248227,0.26253625,700.52,699.34,1.49398392]
[1736904249228,1.06595759,700.47,699.34,1.49398392]
[1736904250422,0.26253669,700.46,699.34,1.49398392]
[1736904250827,1.06595759,700.45,699.34,1.49398392]
[1736904251824,1.06595759,700.47,699.34,1.49398392]
[1736904253329,0.28549404,700.54,699.34,1.49398392]
[1736904255227,0.28549404,700.54,699.35,0.28597983]
[1736904256529,0.28549404,700.54,699.35,1.29097983]
[1736904275351,0.28549404,700.54,699.35,2.35999298]
[1736904276253,0.28549404,700.54,699.41,1.06901315]
[1736904279351,0.28549404,700.54,699.36,1.06901315]
[1736904279552,0.28549404,700.54,699.37,0.28597166]
[1736904280550,1.06595759,700.74,699.37,0.28597166]
[1736904281750,1.06595759,700.81,699.4,1.06901315]
[1736904282056,0.26243085,700.8,699.41,0.2859553]
[1736904282555,1.06595759,700.81,699.41,0.2859553]
[1736904283955,2.17633008,701.45,699.41,0.2859553]
[1736904283956,1.06595759,700.82,699.41,0.2859553]
[1736904285053,1.06595759,700.87,699.41,0.2859553]
[1736904286054,1.06595759,700.86,699.41,0.2859553]
[1736904287959,1.06595759,700.84,699.41,0.2859553]
[1736904289354,1.06595759,700.85,699.41,0.2859553]
[1736904290355,2.17633008,701.57,699.41,0.2859553]
[1736904290356,1.06595759,700.87,699.41,0.2859553]
[1736904290659,0.26242691,700.86,699.41,0.2859553]
[1736904291056,1.06595759,700.87,699.41,0.2859553]
[1736904291464,1.06595759,700.88,699.41,0.2859553]
[1736904292465,0.26242508,700.87,699.41,0.2859553]
[1736904292666,0.26242508,700.86,699.41,0.2859553]
[1736904292966,1.06595759,700.89,699.41,0.2859553]
[1736904293161,0.26242473,700.88,699.41,0.2859553]
[1736904293562,0.26242473,700.87,699.41,0.2859553]
[1736904293761,0.26242473,700.86,699.41,0.2859553]
[1736904293963,0.26242473,700.85,699.41,0.2859553]
[1736904294164,1.32784926,700.84,699.48,1.06748388]
[1736904294360,1.06542453,700.84,699.48,1.06748388]
[1736904294567,0.26242489,700.83,699.48,1.06748388]
[1736904295267,1.32784942,700.83,699.46,1.06748388]
[1736904295469,0.26242489,700.82,699.46,1.06748388]
[1736904295963,0.26242489,700.82,699.43,1.06748388]
[1736904296169,0.26242489,700.81,699.44,0.28594304]
[1736904296366,0.26242489,700.8,699.44,0.28594304]
[1736904296561,0.26242594,700.79,699.44,0.28594304]
[1736904296764,1.06542453,700.85,699.44,0.28594304]
[1736904296961,0.26242594,700.84,699.44,0.28594304]
[1736904297164,0.26242594,700.83,699.44,0.28594304]
[1736904297365,0.26242594,700.82,699.44,0.28594304]
[1736904297665,0.26242594,700.81,699.44,0.28594304]
[1736904297862,0.26242594,700.8,699.45,1.06748388]
[1736904298066,0.26242594,700.82,699.45,1.35342283]
[1736904298266,0.26242594,700.81,699.45,1.35342283]
[1736904298468,0.26242594,700.8,699.45,1.35342283]
[1736904298667,0.26242594,700.79,699.45,1.35342283]
[1736904298863,0.26242594,700.78,699.45,1.35342283]
[1736904299068,1.06542453,700.83,699.45,1.35342283]
[1736904299368,0.26242809,700.82,699.45,1.35342283]
[1736904300270,0.26242846,700.81,699.45,1.35342283]
[1736904300466,0.26242846,700.8,699.45,1.35342283]
[1736904300667,0.26242846,700.79,699.45,1.35342283]
[1736904300864,0.26242846,700.78,699.45,1.35342283]
[1736904301065,1.06542453,700.82,699.45,1.35342283]
[1736904301266,0.26242621,700.81,699.45,1.35342283]
[1736904301966,0.26242335,700.8,699.45,1.35342283]
[1736904302172,0.26242335,700.79,699.46,1.06748388]
[1736904302368,0.26242335,700.78,699.46,1.06748388]
[1736904302569,1.06542453,700.81,699.46,1.06748388]
[1736904302769,0.26242495,700.8,699.46,1.06748388]
[1736904302967,1.06542453,700.8,699.47,1.06748388]
[1736904303372,1.06542453,700.8,699.48,0.28592668]
[1736904303973,2.17524174,701.4,699.48,0.28592668]
[1736904303974,1.06542453,700.87,699.56,1.06748388]
[1736904304276,0.26240449,700.86,699.56,1.06748388]
[1736904304968,0.26240449,700.86,699.48,0.28592668]
[1736904304969,1.32782902,700.86,699.55,1.06748388]
[1736904305274,0.26240449,700.85,699.55,1.06748388]
[1736904305674,0.26239065,700.84,699.55,1.06748388]
[1736904305875,1.06542453,700.84,699.63,1.06748388]
[1736904307173,1.06542453,700.9,699.63,1.06748388]
[1736904307768,0.52476514,700.89,699.63,1.06748388]
[1736904307973,0.2623833,700.89,699.63,1.06748388]
[1736904308276,0.26238184,700.88,699.63,1.06748388]
[1736904308676,1.32780783,700.89,699.62,1.06748388]
[1736904309878,0.2623833,700.89,699.64,1.06748388]
[1736904310980,0.2623833,700.89,699.48,1.35341056]
[1736904311777,0.2623833,700.89,699.49,0.2859226]
[1736904312077,0.2623833,700.89,699.49,1.5459226]
[1736904315178,1.06542453,701.13,699.49,1.5459226]
[1736904315371,0.28525787,701.12,699.49,1.5459226]
[1736904316579,0.26236579,701.11,699.49,1.5459226]
[1736904317179,0.28526601,701.1,699.49,1.5459226]
[1736904317675,0.26236962,701.09,699.49,1.5459226]
[1736904318679,0.28526601,701.1,699.49,1.5459226]
[1736904318877,0.26237757,701.09,699.49,1.5459226]
[1736904319588,0.28527414,701.08,699.49,1.5459226]
[1736904319784,0.26237757,701.07,699.49,1.5459226]
[1736904319984,0.28528228,701.06,699.49,1.5459226]
[1736904320180,1.06542453,701.01,699.49,2.61340648]
[1736904320384,0.26237757,701.0,699.49,2.61340648]
[1736904320984,1.06542453,700.94,699.51,1.06748388]
[1736904321680,0.26241016,700.93,699.51,1.06748388]
[1736904322084,0.26241016,700.93,699.49,1.5459226]
[1736904322385,0.26241254,700.92,699.5,0.28591851]
[1736904322585,0.26241254,700.91,699.5,0.28591851]
[1736904322884,0.26241254,700.9,699.5,0.28591851]
[1736904323087,0.26241292,700.89,699.5,0.28591851]
[1736904323286,1.06549487,700.92,699.5,0.28591851]
[1736904323488,0.26240997,700.91,699.5,0.28591851]
[1736904325787,1.06549487,700.92,699.5,0.28591851]
[1736904326185,1.06549487,700.91,699.5,0.28591851]
[1736904327888,0.28528228,701.06,699.5,0.28591851]
[1736904327889,1.06549487,700.95,699.5,0.28591851]
[1736904329283,1.06549487,700.95,699.5,1.36191851]
[1736904330391,1.06549487,701.02,699.54,1.06752413]
[1736904330585,0.26237387,701.01,699.54,1.06752413]
[1736904330784,0.26237387,701.01,699.55,0.28589807]
[1736904331486,1.32786874,701.01,699.55,0.28589807]
[1736904331691,1.06549487,701.01,699.55,0.28589807]
[1736904332386,1.06549487,701.0,699.55,0.28589807]
[1736904333892,0.28528228,701.06,699.55,0.28589807]
[1736904337289,0.28528228,701.06,699.63,1.06752413]
[1736904337489,0.28528228,701.06,699.64,0.2858613]
[1736904337999,0.28528228,701.06,699.66,1.06752413]
[1736904338393,0.28528228,701.06,699.67,0.28584904]
[1736904348299,0.28528228,701.06,699.67,1.12984904]
[1736904365514,0.28528228,701.06,699.75,1.06752413]
[1736904366620,0.28528228,701.06,699.76,1.06752413]
[1736904366815,0.28528228,701.06,699.76,2.33952413]